[Event "Titled Tuesday Blitz January 04 2022"]
[White "Samadov, Read"]
[Black "Aggelis, Nikolaos"]
[WhiteFideId "13417444"]
[BlackFideId "4213220"]
[WhiteElo "2084"]
[BlackElo "2154"]
[Result "1-0"]
[Round "01"]
[TimeControl "180+1"]
[Date "2022.01.04"]
[WhiteClock "0:01:00"]
[BlackClock "0:00:08"]

1. d4 {[%clk 0:03:00]}  Nf6 {[%clk 0:02:59]} 2. c4 {[%clk 0:03:01]}  g6 {[%clk 0:02:59]} 3. Nc3 {[%clk 0:03:00]}  d5 {[%clk 0:02:59]} 4. cxd5 {[%clk 0:02:59]}  Nxd5 {[%clk 0:03:00]} 5. e4 {[%clk 0:03:00]}  Nxc3 {[%clk 0:03:00]} 6. bxc3 {[%clk 0:03:00]}  Bg7 {[%clk 0:03:00]} 7. Bc4 {[%clk 0:03:00]}  b6 {[%clk 0:03:00]} 8. Ne2 {[%clk 0:03:00]}  Bb7 {[%clk 0:03:00]} 9. Bd3 {[%clk 0:02:48]}  c5 {[%clk 0:02:55]} 10. O-O {[%clk 0:02:47]}  Nc6 {[%clk 0:02:50]} 11. d5 {[%clk 0:02:47]}  Ne5 {[%clk 0:02:47]} 12. Bb5+ {[%clk 0:02:37]}  Nd7 {[%clk 0:02:47]} 13. Rb1 {[%clk 0:02:35]}  a6 {[%clk 0:02:47]} 14. Bxd7+ {[%clk 0:02:33]}  Kxd7 {[%clk 0:02:40]} 15. c4 {[%clk 0:02:30]}  Ke8 {[%clk 0:02:16]} 16. Qa4+ {[%clk 0:02:27]}  Kf8 {[%clk 0:02:14]} 17. Bb2 {[%clk 0:02:23]}  b5 {[%clk 0:02:07]} 18. cxb5 {[%clk 0:02:06]}  axb5 {[%clk 0:02:08]} 19. Qxb5 {[%clk 0:02:01]}  Ba6 {[%clk 0:02:01]} 20. Bxg7+ {[%clk 0:02:01]}  Kxg7 {[%clk 0:02:01]} 21. Qb2+ {[%clk 0:02:01]}  f6 {[%clk 0:02:01]} 22. Rfc1 {[%clk 0:02:01]}  Bxe2 {[%clk 0:01:58]} 23. Qxe2 {[%clk 0:02:00]}  Qa5 {[%clk 0:01:57]} 24. e5 {[%clk 0:01:57]}  Qxa2 {[%clk 0:01:48]} 25. exf6+ {[%clk 0:01:56]}  exf6 {[%clk 0:01:49]} 26. Qe7+ {[%clk 0:01:46]}  Kh6 {[%clk 0:01:49]} 27. Qxf6 {[%clk 0:01:32]}  Qxd5 {[%clk 0:01:46]} 28. Rc3 {[%clk 0:01:31]}  Qf5 {[%clk 0:01:29]} 29. Rh3+ {[%clk 0:01:29]}  Qxh3 {[%clk 0:01:26]} 30. gxh3 {[%clk 0:01:29]}  Rhf8 {[%clk 0:01:23]} 31. Qh4+ {[%clk 0:01:29]}  Kg7 {[%clk 0:01:22]} 32. Rb7+ {[%clk 0:01:29]}  Rf7 {[%clk 0:01:22]} 33. Rxf7+ {[%clk 0:01:29]}  Kxf7 {[%clk 0:01:23]} 34. Qf4+ {[%clk 0:01:24]}  Kg7 {[%clk 0:01:18]} 35. Qe5+ {[%clk 0:01:24]}  Kh6 {[%clk 0:01:16]} 36. Qxc5 {[%clk 0:01:20]}  Ra4 {[%clk 0:01:03]} 37. Qf8+ {[%clk 0:01:17]}  Kh5 {[%clk 0:00:47]} 38. Qg7 {[%clk 0:01:16]}  Rf4 {[%clk 0:00:39]} 39. Qxh7+ {[%clk 0:01:16]}  Kg5 {[%clk 0:00:39]} 40. Qe7+ {[%clk 0:01:16]}  Kh5 {[%clk 0:00:36]} 41. Kg2 {[%clk 0:01:13]}  Rf5 {[%clk 0:00:33]} 42. Qh7+ {[%clk 0:01:12]}  Kg5 {[%clk 0:00:34]} 43. Kg3 {[%clk 0:01:11]}  Kf6 {[%clk 0:00:34]} 44. f4 {[%clk 0:01:11]}  Rh5 {[%clk 0:00:33]} 45. Qd7 {[%clk 0:01:08]}  Rf5 {[%clk 0:00:31]} 46. Kg4 {[%clk 0:01:07]}  Rh5 {[%clk 0:00:30]} 47. Qd6+ {[%clk 0:01:06]}  Kg7 {[%clk 0:00:30]} 48. Qe7+ {[%clk 0:01:06]}  Kh6 {[%clk 0:00:28]} 49. Qf8+ {[%clk 0:01:06]}  Kh7 {[%clk 0:00:29]} 50. h4 {[%clk 0:01:06]}  Ra5 {[%clk 0:00:17]} 51. Qf7+ {[%clk 0:01:05]}  Kh6 {[%clk 0:00:17]} 52. Qg8 {[%clk 0:01:05]}  Ra7 {[%clk 0:00:12]} 53. Qh8+ {[%clk 0:01:03]}  Rh7 {[%clk 0:00:10]} 54. Qf8+ {[%clk 0:01:03]}  Rg7 {[%clk 0:00:11]} 55. Qxg7+ {[%clk 0:00:58]}  Kxg7 {[%clk 0:00:10]} 56. Kg5 {[%clk 0:00:59]}  Kh7 {[%clk 0:00:09]} 57. h5 {[%clk 0:00:59]}  gxh5 {[%clk 0:00:08]} 58. Kxh5 {[%clk 0:01:00]} 1-0


[Site "https://www.chess.com"]

[Event "Titled Tuesday Blitz January 04 2022"]
[White "Silva, Miguel Antonio Neto"]
[Black "Hakobyan, Aram"]
[WhiteFideId "1911929"]
[BlackFideId "13306677"]
[WhiteElo "2204"]
[BlackElo "2557"]
[Result "0-1"]
[Round "01"]
[TimeControl "180+1"]
[Date "2022.01.04"]
[WhiteClock "0:01:42"]
[BlackClock "0:01:03"]

1. e4 {[%clk 0:03:00]}  c6 {[%clk 0:02:59]} 2. d4 {[%clk 0:02:56]}  d5 {[%clk 0:03:00]} 3. exd5 {[%clk 0:02:56]}  cxd5 {[%clk 0:03:00]} 4. Bd3 {[%clk 0:02:57]}  Nf6 {[%clk 0:03:00]} 5. c3 {[%clk 0:02:55]}  Bg4 {[%clk 0:03:00]} 6. Qb3 {[%clk 0:02:53]}  Qc7 {[%clk 0:03:00]} 7. Bg5 {[%clk 0:02:38]}  e6 {[%clk 0:02:39]} 8. Nd2 {[%clk 0:02:38]}  Nc6 {[%clk 0:02:34]} 9. Bh4 {[%clk 0:02:36]}  Bd6 {[%clk 0:02:31]} 10. Ngf3 {[%clk 0:02:34]}  Bh5 {[%clk 0:02:26]} 11. O-O {[%clk 0:02:32]}  Bg6 {[%clk 0:02:25]} 12. Bxg6 {[%clk 0:02:23]}  hxg6 {[%clk 0:02:25]} 13. Bg3 {[%clk 0:02:23]}  Bxg3 {[%clk 0:02:02]} 14. fxg3 {[%clk 0:02:20]}  O-O-O {[%clk 0:01:42]} 15. Rae1 {[%clk 0:02:17]}  Kb8 {[%clk 0:01:40]} 16. Qd1 {[%clk 0:02:13]}  Rh5 {[%clk 0:01:22]} 17. Qe2 {[%clk 0:02:04]}  Rdh8 {[%clk 0:01:17]} 18. b4 {[%clk 0:01:51]}  Ng4 {[%clk 0:01:11]} 19. h3 {[%clk 0:01:46]}  Qxg3 {[%clk 0:01:05]} 20. b5 {[%clk 0:01:42]}  Rxh3 {[%clk 0:01:03]} 0-1


[Site "https://www.chess.com"]

[Event "Titled Tuesday Blitz January 04 2022"]
[White "Timofeev, Artyom"]
[Black "Przybylski, Wojciech"]
[WhiteFideId "4140419"]
[BlackFideId "1117599"]
[WhiteElo "2583"]
[BlackElo "2133"]
[Result "1-0"]
[Round "01"]
[TimeControl "180+1"]
[Date "2022.01.04"]
[WhiteClock "0:00:33"]
[BlackClock "0:00:03"]

1. d4 {[%clk 0:03:00]}  Nf6 {[%clk 0:02:58]} 2. Nf3 {[%clk 0:02:58]}  d5 {[%clk 0:02:58]} 3. c4 {[%clk 0:02:57]}  c6 {[%clk 0:02:57]} 4. g3 {[%clk 0:02:56]}  Bg4 {[%clk 0:02:55]} 5. Bg2 {[%clk 0:02:55]}  e6 {[%clk 0:02:55]} 6. O-O {[%clk 0:02:54]}  Nbd7 {[%clk 0:02:54]} 7. Nc3 {[%clk 0:02:53]}  Be7 {[%clk 0:02:53]} 8. h3 {[%clk 0:02:52]}  Bxf3 {[%clk 0:02:52]} 9. Bxf3 {[%clk 0:02:51]}  O-O {[%clk 0:02:52]} 10. b3 {[%clk 0:02:50]}  Re8 {[%clk 0:02:48]} 11. Bb2 {[%clk 0:02:50]}  Qa5 {[%clk 0:02:43]} 12. Bg2 {[%clk 0:02:47]}  Ba3 {[%clk 0:02:38]} 13. Qc1 {[%clk 0:02:39]}  Bxb2 {[%clk 0:02:34]} 14. Qxb2 {[%clk 0:02:39]}  Qb6 {[%clk 0:01:59]} 15. Qd2 {[%clk 0:02:32]}  Rad8 {[%clk 0:01:56]} 16. Rfd1 {[%clk 0:02:28]}  h6 {[%clk 0:01:52]} 17. Rac1 {[%clk 0:02:27]}  Nf8 {[%clk 0:01:48]} 18. e3 {[%clk 0:02:20]}  Ng6 {[%clk 0:01:40]} 19. Qc2 {[%clk 0:02:14]}  Ne7 {[%clk 0:01:39]} 20. Na4 {[%clk 0:02:11]}  Qc7 {[%clk 0:01:38]} 21. Nc5 {[%clk 0:02:11]}  Nf5 {[%clk 0:01:30]} 22. Nd3 {[%clk 0:02:05]}  Nd6 {[%clk 0:01:29]} 23. Ne5 {[%clk 0:01:58]}  Nde4 {[%clk 0:01:24]} 24. b4 {[%clk 0:01:57]}  Nd6 {[%clk 0:01:14]} 25. a4 {[%clk 0:01:51]}  Nxc4 {[%clk 0:01:08]} 26. Nxc4 {[%clk 0:01:51]}  dxc4 {[%clk 0:01:08]} 27. Qxc4 {[%clk 0:01:52]}  Qd7 {[%clk 0:00:49]} 28. b5 {[%clk 0:01:50]}  cxb5 {[%clk 0:00:44]} 29. Qxb5 {[%clk 0:01:50]}  Qxb5 {[%clk 0:00:35]} 30. axb5 {[%clk 0:01:50]}  Nd5 {[%clk 0:00:35]} 31. Kf1 {[%clk 0:01:37]}  a6 {[%clk 0:00:30]} 32. bxa6 {[%clk 0:01:35]}  bxa6 {[%clk 0:00:31]} 33. Ra1 {[%clk 0:01:34]}  Ra8 {[%clk 0:00:28]} 34. Ra5 {[%clk 0:01:32]}  Red8 {[%clk 0:00:25]} 35. Rda1 {[%clk 0:01:31]}  Rd6 {[%clk 0:00:24]} 36. e4 {[%clk 0:01:28]}  Nc7 {[%clk 0:00:13]} 37. e5 {[%clk 0:01:28]}  Rxd4 {[%clk 0:00:13]} 38. Bxa8 {[%clk 0:01:27]}  Nxa8 {[%clk 0:00:13]} 39. Rxa6 {[%clk 0:01:15]}  Nc7 {[%clk 0:00:13]} 40. R6a4 {[%clk 0:01:16]}  Rd2 {[%clk 0:00:08]} 41. R4a2 {[%clk 0:01:13]}  Rd4 {[%clk 0:00:07]} 42. Re2 {[%clk 0:00:58]}  Nd5 {[%clk 0:00:07]} 43. Rae1 {[%clk 0:00:58]}  Kh7 {[%clk 0:00:07]} 44. Kg2 {[%clk 0:00:57]}  Rd3 {[%clk 0:00:07]} 45. h4 {[%clk 0:00:55]}  h5 {[%clk 0:00:07]} 46. Ra2 {[%clk 0:00:54]}  Rd4 {[%clk 0:00:07]} 47. Ra7 {[%clk 0:00:54]}  Kg6 {[%clk 0:00:07]} 48. Re2 {[%clk 0:00:53]}  Rc4 {[%clk 0:00:07]} 49. Rb2 {[%clk 0:00:48]}  Re4 {[%clk 0:00:07]} 50. f4 {[%clk 0:00:48]}  Re1 {[%clk 0:00:04]} 51. Rbb7 {[%clk 0:00:46]}  Re2+ {[%clk 0:00:04]} 52. Kf3 {[%clk 0:00:46]}  Re3+ {[%clk 0:00:03]} 53. Kf2 {[%clk 0:00:46]}  Rc3 {[%clk 0:00:03]} 54. Rxf7 {[%clk 0:00:45]}  Rc2+ {[%clk 0:00:03]} 55. Ke1 {[%clk 0:00:45]}  Ne3 {[%clk 0:00:02]} 56. Rxg7+ {[%clk 0:00:39]}  Kf5 {[%clk 0:00:02]} 57. Ra4 {[%clk 0:00:36]}  Ng2+ {[%clk 0:00:01]} 58. Kf1 {[%clk 0:00:37]}  Ne3+ {[%clk 0:00:02]} 59. Kg1 {[%clk 0:00:37]}  Rc1+ {[%clk 0:00:02]} 60. Kf2 {[%clk 0:00:36]}  Ng4+ {[%clk 0:00:02]} 61. Ke2 {[%clk 0:00:34]}  Rc2+ {[%clk 0:00:03]} 62. Kd3 {[%clk 0:00:33]} 1-0


[Site "https://www.chess.com"]

[Event "Titled Tuesday Blitz January 04 2022"]
[White "Xiong, Jeffery"]
[Black "Levitskiy, Andrey"]
[WhiteFideId "2047640"]
[BlackFideId "14132885"]
[WhiteElo "2727"]
[BlackElo "2301"]
[Result "1-0"]
[Round "01"]
[TimeControl "180+1"]
[Date "2022.01.04"]
[WhiteClock "0:00:42"]
[BlackClock "0:00:01"]

1. d4 {[%clk 0:03:00]}  Nf6 {[%clk 0:02:59]} 2. c4 {[%clk 0:03:01]}  e6 {[%clk 0:03:00]} 3. Nc3 {[%clk 0:03:01]}  Bb4 {[%clk 0:03:00]} 4. Nf3 {[%clk 0:03:02]}  c5 {[%clk 0:02:48]} 5. g3 {[%clk 0:03:01]}  d6 {[%clk 0:02:13]} 6. Bg2 {[%clk 0:03:00]}  O-O {[%clk 0:02:13]} 7. O-O {[%clk 0:03:01]}  Nc6 {[%clk 0:02:11]} 8. d5 {[%clk 0:02:58]}  exd5 {[%clk 0:02:07]} 9. cxd5 {[%clk 0:02:59]}  Ne7 {[%clk 0:01:49]} 10. Nd2 {[%clk 0:02:32]}  Bxc3 {[%clk 0:01:43]} 11. bxc3 {[%clk 0:02:33]}  Nfxd5 {[%clk 0:01:31]} 12. Bb2 {[%clk 0:02:33]}  Nc7 {[%clk 0:01:21]} 13. Ne4 {[%clk 0:02:29]}  Nf5 {[%clk 0:01:14]} 14. Qd3 {[%clk 0:02:25]}  Qe7 {[%clk 0:01:04]} 15. Rfd1 {[%clk 0:02:23]}  d5 {[%clk 0:01:04]} 16. Nd2 {[%clk 0:02:23]}  Be6 {[%clk 0:00:56]} 17. e4 {[%clk 0:02:21]}  dxe4 {[%clk 0:00:54]} 18. Qxe4 {[%clk 0:02:22]}  Rad8 {[%clk 0:00:44]} 19. Nf3 {[%clk 0:01:55]}  b6 {[%clk 0:00:40]} 20. Ne5 {[%clk 0:01:55]}  Rxd1+ {[%clk 0:00:33]} 21. Rxd1 {[%clk 0:01:55]}  Rd8 {[%clk 0:00:34]} 22. Re1 {[%clk 0:01:53]}  Qf6 {[%clk 0:00:33]} 23. c4 {[%clk 0:01:30]}  Nd4 {[%clk 0:00:22]} 24. Nc6 {[%clk 0:01:30]}  Re8 {[%clk 0:00:06]} 25. Nxd4 {[%clk 0:01:19]}  cxd4 {[%clk 0:00:07]} 26. Bxd4 {[%clk 0:01:18]}  Qg6 {[%clk 0:00:08]} 27. Qc6 {[%clk 0:01:15]}  Qd3 {[%clk 0:00:08]} 28. Be5 {[%clk 0:00:52]}  Bd7 {[%clk 0:00:08]} 29. Qxc7 {[%clk 0:00:52]}  Qd2 {[%clk 0:00:08]} 30. Rf1 {[%clk 0:00:47]}  Bg4 {[%clk 0:00:03]} 31. Bd5 {[%clk 0:00:45]}  Bh5 {[%clk 0:00:02]} 32. Qd7 {[%clk 0:00:41]}  Rf8 {[%clk 0:00:02]} 33. Bxf7+ {[%clk 0:00:41]}  Bxf7 {[%clk 0:00:01]} 34. Qxd2 {[%clk 0:00:42]} 1-0


[Site "https://www.chess.com"]

[Event "Titled Tuesday Blitz January 04 2022"]
[White "Yilmaz, Mustafa"]
[Black "Moon_stone123"]
[WhiteFideId "6302718"]
[WhiteElo "2568"]
[BlackElo "2500"]
[Result "1-0"]
[Round "01"]
[TimeControl "180+1"]
[Date "2022.01.04"]
[WhiteClock "0:01:19"]
[BlackClock "0:00:57"]

1. c4 {[%clk 0:03:00]}  e5 {[%clk 0:02:59]} 2. Nc3 {[%clk 0:03:01]}  Nf6 {[%clk 0:02:57]} 3. Nf3 {[%clk 0:03:00]}  Nc6 {[%clk 0:02:55]} 4. e3 {[%clk 0:02:59]}  g6 {[%clk 0:02:46]} 5. d4 {[%clk 0:02:52]}  exd4 {[%clk 0:02:44]} 6. exd4 {[%clk 0:02:53]}  d5 {[%clk 0:02:43]} 7. Bg5 {[%clk 0:02:52]}  Be7 {[%clk 0:02:28]} 8. Bxf6 {[%clk 0:02:42]}  Bxf6 {[%clk 0:02:29]} 9. cxd5 {[%clk 0:02:42]}  Ne7 {[%clk 0:02:26]} 10. Bb5+ {[%clk 0:02:42]}  Bd7 {[%clk 0:02:24]} 11. Qb3 {[%clk 0:02:38]}  O-O {[%clk 0:02:16]} 12. O-O {[%clk 0:02:38]}  Bxb5 {[%clk 0:02:14]} 13. Qxb5 {[%clk 0:02:38]}  Rb8 {[%clk 0:02:03]} 14. Rfe1 {[%clk 0:02:24]}  a6 {[%clk 0:02:01]} 15. Qb3 {[%clk 0:02:22]}  Nf5 {[%clk 0:02:01]} 16. Rad1 {[%clk 0:02:22]}  Re8 {[%clk 0:01:56]} 17. Ne4 {[%clk 0:02:20]}  Bg7 {[%clk 0:01:53]} 18. h3 {[%clk 0:02:17]}  Qd7 {[%clk 0:01:45]} 19. Ne5 {[%clk 0:02:13]}  Qd8 {[%clk 0:01:37]} 20. d6 {[%clk 0:02:02]}  Nxd6 {[%clk 0:01:12]} 21. Nxd6 {[%clk 0:02:01]}  Qxd6 {[%clk 0:01:13]} 22. Nxf7 {[%clk 0:01:59]}  Rxe1+ {[%clk 0:01:06]} 23. Rxe1 {[%clk 0:01:57]}  Qf4 {[%clk 0:01:03]} 24. Nd8+ {[%clk 0:01:46]}  Kh8 {[%clk 0:00:59]} 25. Re8+ {[%clk 0:01:46]}  Bf8 {[%clk 0:00:59]} 26. Qf7 {[%clk 0:01:25]}  Qxf7 {[%clk 0:00:55]} 27. Nxf7+ {[%clk 0:01:24]}  Kg7 {[%clk 0:00:54]} 28. Rxb8 {[%clk 0:01:25]}  Kxf7 {[%clk 0:00:54]} 29. Rxb7 {[%clk 0:01:25]}  Bd6 {[%clk 0:00:55]} 30. Ra7 {[%clk 0:01:26]}  Ke6 {[%clk 0:00:55]} 31. Rxa6 {[%clk 0:01:26]}  Kd5 {[%clk 0:00:55]} 32. Ra4 {[%clk 0:01:22]}  Ke4 {[%clk 0:00:56]} 33. Kf1 {[%clk 0:01:22]}  Kd3 {[%clk 0:00:57]} 34. Ke1 {[%clk 0:01:19]}  Kc2 {[%clk 0:00:57]} 35. b3 {[%clk 0:01:19]} 1-0


[Site "https://www.chess.com"]

[Event "Titled Tuesday Blitz January 04 2022"]
[White "Yoo, Christopher Woojin"]
[Black "Viana Da Costa, Fernando"]
[WhiteFideId "30909694"]
[BlackFideId "2111900"]
[WhiteElo "2105"]
[BlackElo "2247"]
[Result "0-1"]
[Round "01"]
[TimeControl "180+1"]
[Date "2022.01.04"]
[WhiteClock "0:00:03"]
[BlackClock "0:00:06"]

1. e4 {[%clk 0:02:54]}  c5 {[%clk 0:02:59]} 2. Nf3 {[%clk 0:02:53]}  Nc6 {[%clk 0:02:59]} 3. Nc3 {[%clk 0:02:51]}  g6 {[%clk 0:02:59]} 4. Bb5 {[%clk 0:02:48]}  Bg7 {[%clk 0:02:58]} 5. O-O {[%clk 0:02:46]}  Nd4 {[%clk 0:02:54]} 6. Nxd4 {[%clk 0:02:46]}  cxd4 {[%clk 0:02:54]} 7. Ne2 {[%clk 0:02:46]}  a6 {[%clk 0:02:48]} 8. Ba4 {[%clk 0:02:46]}  b6 {[%clk 0:02:35]} 9. d3 {[%clk 0:02:37]}  e6 {[%clk 0:02:34]} 10. f4 {[%clk 0:02:33]}  Ne7 {[%clk 0:02:34]} 11. Qe1 {[%clk 0:02:23]}  O-O {[%clk 0:02:31]} 12. Bd2 {[%clk 0:02:13]}  d6 {[%clk 0:02:25]} 13. Qf2 {[%clk 0:02:10]}  Bd7 {[%clk 0:01:55]} 14. Bxd7 {[%clk 0:01:55]}  Qxd7 {[%clk 0:01:55]} 15. Nxd4 {[%clk 0:01:55]}  Rfc8 {[%clk 0:01:55]} 16. c3 {[%clk 0:01:49]}  d5 {[%clk 0:01:47]} 17. e5 {[%clk 0:01:44]}  b5 {[%clk 0:01:47]} 18. g4 {[%clk 0:01:30]}  f6 {[%clk 0:01:41]} 19. exf6 {[%clk 0:01:25]}  Bxf6 {[%clk 0:01:42]} 20. Rae1 {[%clk 0:01:25]}  Bxd4 {[%clk 0:01:33]} 21. Qxd4 {[%clk 0:01:25]}  Nc6 {[%clk 0:01:34]} 22. Qf6 {[%clk 0:01:24]}  Re8 {[%clk 0:01:34]} 23. Re2 {[%clk 0:01:17]}  Qf7 {[%clk 0:01:34]} 24. Qxf7+ {[%clk 0:01:14]}  Kxf7 {[%clk 0:01:34]} 25. d4 {[%clk 0:01:10]}  Ne7 {[%clk 0:01:27]} 26. Rfe1 {[%clk 0:01:01]}  Ng8 {[%clk 0:01:27]} 27. g5 {[%clk 0:00:57]}  Rac8 {[%clk 0:01:25]} 28. Re3 {[%clk 0:00:50]}  h5 {[%clk 0:01:23]} 29. gxh6 {[%clk 0:00:47]}  Nxh6 {[%clk 0:01:23]} 30. Rh3 {[%clk 0:00:48]}  Rh8 {[%clk 0:01:18]} 31. Ree3 {[%clk 0:00:35]}  Nf5 {[%clk 0:01:18]} 32. Rd3 {[%clk 0:00:34]}  a5 {[%clk 0:01:13]} 33. Kg2 {[%clk 0:00:34]}  a4 {[%clk 0:01:13]} 34. Rxh8 {[%clk 0:00:30]}  Rxh8 {[%clk 0:01:12]} 35. Rh3 {[%clk 0:00:31]}  Rh5 {[%clk 0:01:08]} 36. Rxh5 {[%clk 0:00:26]}  gxh5 {[%clk 0:01:09]} 37. Kf3 {[%clk 0:00:27]}  Ke7 {[%clk 0:01:09]} 38. Ke2 {[%clk 0:00:25]}  Kd6 {[%clk 0:01:08]} 39. Kd3 {[%clk 0:00:26]}  Nh4 {[%clk 0:01:05]} 40. Be3 {[%clk 0:00:25]}  Nf3 {[%clk 0:01:00]} 41. h3 {[%clk 0:00:23]}  Nh4 {[%clk 0:00:51]} 42. b3 {[%clk 0:00:21]}  axb3 {[%clk 0:00:47]} 43. axb3 {[%clk 0:00:22]}  Nf5 {[%clk 0:00:47]} 44. Bf2 {[%clk 0:00:21]}  Kc6 {[%clk 0:00:43]} 45. Kc2 {[%clk 0:00:21]}  Nd6 {[%clk 0:00:41]} 46. Kb2 {[%clk 0:00:20]}  Ne4 {[%clk 0:00:42]} 47. Be1 {[%clk 0:00:19]}  Nd6 {[%clk 0:00:28]} 48. Ka3 {[%clk 0:00:19]}  Kb6 {[%clk 0:00:27]} 49. Kb4 {[%clk 0:00:18]}  Ne4 {[%clk 0:00:26]} 50. c4 {[%clk 0:00:11]}  bxc4 {[%clk 0:00:27]} 51. bxc4 {[%clk 0:00:11]}  dxc4 {[%clk 0:00:28]} 52. Kxc4 {[%clk 0:00:12]}  Kc6 {[%clk 0:00:28]} 53. Bb4 {[%clk 0:00:09]}  Nf2 {[%clk 0:00:27]} 54. h4 {[%clk 0:00:08]}  Nh3 {[%clk 0:00:17]} 55. Bd2 {[%clk 0:00:06]}  Ng1 {[%clk 0:00:18]} 56. Be3 {[%clk 0:00:05]}  Nf3 {[%clk 0:00:17]} 57. Bf2 {[%clk 0:00:05]}  Nh2 {[%clk 0:00:15]} 58. f5 {[%clk 0:00:03]}  exf5 {[%clk 0:00:11]} 59. d5+ {[%clk 0:00:03]}  Kd7 {[%clk 0:00:11]} 60. Kd4 {[%clk 0:00:03]}  Nf3+ {[%clk 0:00:11]} 61. Ke3 {[%clk 0:00:04]}  Ne5 {[%clk 0:00:07]} 62. Bg3 {[%clk 0:00:04]}  Ng4+ {[%clk 0:00:07]} 63. Kf4 {[%clk 0:00:03]}  Kd6 {[%clk 0:00:06]} 0-1


[Site "https://www.chess.com"]

[Event "Titled Tuesday Blitz January 04 2022"]
[White "Alexiadis, Hristos"]
[Black "Nakamura, Hikaru"]
[WhiteFideId "4249623"]
[BlackFideId "2016192"]
[WhiteElo "2416"]
[BlackElo "2850"]
[Result "1-0"]
[Round "02"]
[TimeControl "180+1"]
[Date "2022.01.04"]
[WhiteClock "0:00:17"]
[BlackClock "0:00:27"]

1. e4 {[%clk 0:03:00]}  g6 {[%clk 0:02:58]} 2. d4 {[%clk 0:03:00]}  Bg7 {[%clk 0:02:59]} 3. Nc3 {[%clk 0:03:01]}  a6 {[%clk 0:02:58]} 4. Bg5 {[%clk 0:03:00]}  b5 {[%clk 0:02:58]} 5. a4 {[%clk 0:02:59]}  b4 {[%clk 0:02:58]} 6. Nd5 {[%clk 0:02:59]}  a5 {[%clk 0:02:58]} 7. c3 {[%clk 0:03:00]}  Bb7 {[%clk 0:02:55]} 8. Bd3 {[%clk 0:02:59]}  Bxd5 {[%clk 0:02:52]} 9. exd5 {[%clk 0:02:59]}  Nf6 {[%clk 0:02:53]} 10. Qf3 {[%clk 0:02:59]}  O-O {[%clk 0:02:46]} 11. Ne2 {[%clk 0:02:59]}  c6 {[%clk 0:02:40]} 12. dxc6 {[%clk 0:02:56]}  Nxc6 {[%clk 0:02:38]} 13. O-O {[%clk 0:02:57]}  Rc8 {[%clk 0:02:31]} 14. Ba6 {[%clk 0:02:53]}  Rc7 {[%clk 0:02:29]} 15. Bf4 {[%clk 0:02:52]}  d6 {[%clk 0:02:28]} 16. Rad1 {[%clk 0:02:48]}  bxc3 {[%clk 0:02:25]} 17. bxc3 {[%clk 0:02:49]}  Qa8 {[%clk 0:02:21]} 18. Bb5 {[%clk 0:02:48]}  Na7 {[%clk 0:02:21]} 19. Qxa8 {[%clk 0:02:43]}  Rxa8 {[%clk 0:02:22]} 20. Bd3 {[%clk 0:02:35]}  Nd5 {[%clk 0:02:22]} 21. Bd2 {[%clk 0:02:36]}  Nb6 {[%clk 0:02:22]} 22. Ra1 {[%clk 0:02:31]}  Nc4 {[%clk 0:02:16]} 23. Bg5 {[%clk 0:02:15]}  e5 {[%clk 0:02:10]} 24. Rfe1 {[%clk 0:01:51]}  h6 {[%clk 0:02:02]} 25. Be3 {[%clk 0:01:49]}  Nc8 {[%clk 0:01:42]} 26. Be4 {[%clk 0:01:42]}  Ra6 {[%clk 0:01:37]} 27. Reb1 {[%clk 0:01:42]}  Nxe3 {[%clk 0:01:26]} 28. fxe3 {[%clk 0:01:43]}  Ne7 {[%clk 0:01:27]} 29. Rb8+ {[%clk 0:01:37]}  Kh7 {[%clk 0:01:27]} 30. Rab1 {[%clk 0:01:37]}  d5 {[%clk 0:01:21]} 31. Bd3 {[%clk 0:01:35]}  Raa7 {[%clk 0:01:21]} 32. R1b5 {[%clk 0:01:27]}  e4 {[%clk 0:01:19]} 33. Bb1 {[%clk 0:01:26]}  h5 {[%clk 0:01:20]} 34. Ba2 {[%clk 0:01:26]}  Bh6 {[%clk 0:01:20]} 35. Kf2 {[%clk 0:01:25]}  Nf5 {[%clk 0:01:20]} 36. Bxd5 {[%clk 0:01:16]}  Bxe3+ {[%clk 0:01:16]} 37. Ke1 {[%clk 0:01:13]}  Bh6 {[%clk 0:01:16]} 38. Bxe4 {[%clk 0:01:06]}  Nd6 {[%clk 0:01:16]} 39. Re5 {[%clk 0:01:05]}  Nc4 {[%clk 0:01:06]} 40. Ree8 {[%clk 0:01:02]}  Bd2+ {[%clk 0:01:06]} 41. Kf2 {[%clk 0:01:00]}  Nd6 {[%clk 0:01:05]} 42. Rh8+ {[%clk 0:00:54]}  Kg7 {[%clk 0:01:05]} 43. Bd3 {[%clk 0:00:40]}  Bxc3 {[%clk 0:01:01]} 44. Rhg8+ {[%clk 0:00:37]}  Kf6 {[%clk 0:01:00]} 45. Rgd8 {[%clk 0:00:37]}  Ke7 {[%clk 0:00:56]} 46. Ke3 {[%clk 0:00:28]}  Rab7 {[%clk 0:00:39]} 47. Nf4 {[%clk 0:00:26]}  Rxb8 {[%clk 0:00:34]} 48. Rxb8 {[%clk 0:00:27]}  Kd7 {[%clk 0:00:34]} 49. Nd5 {[%clk 0:00:27]}  Rc6 {[%clk 0:00:35]} 50. Bb5 {[%clk 0:00:23]}  Nxb5 {[%clk 0:00:35]} 51. axb5 {[%clk 0:00:24]}  Re6+ {[%clk 0:00:36]} 52. Kd3 {[%clk 0:00:24]}  Be1 {[%clk 0:00:36]} 53. Rb7+ {[%clk 0:00:23]}  Kd6 {[%clk 0:00:37]} 54. Nf4 {[%clk 0:00:23]}  Re7 {[%clk 0:00:33]} 55. Rb6+ {[%clk 0:00:22]}  Kd7 {[%clk 0:00:34]} 56. Nd5 {[%clk 0:00:20]}  Re6 {[%clk 0:00:32]} 57. Rb7+ {[%clk 0:00:20]}  Kc8 {[%clk 0:00:27]} 58. Rxf7 {[%clk 0:00:20]}  a4 {[%clk 0:00:27]} 59. Ra7 {[%clk 0:00:19]}  Rd6 {[%clk 0:00:27]} 60. Kc4 {[%clk 0:00:19]}  Re6 {[%clk 0:00:27]} 61. b6 {[%clk 0:00:18]}  Re2 {[%clk 0:00:26]} 62. Ne7+ {[%clk 0:00:18]}  Kd8 {[%clk 0:00:24]} 63. Nc6+ {[%clk 0:00:18]}  Ke8 {[%clk 0:00:25]} 64. b7 {[%clk 0:00:18]}  Rc2+ {[%clk 0:00:25]} 65. Kd5 {[%clk 0:00:16]}  Rb2 {[%clk 0:00:26]} 66. b8=Q+ {[%clk 0:00:16]}  Rxb8 {[%clk 0:00:27]} 67. Nxb8 {[%clk 0:00:17]} 1-0


[Site "https://www.chess.com"]

[Event "Titled Tuesday Blitz January 04 2022"]
[White "Atakhan, Abtin"]
[Black "Babazada, Khazar"]
[WhiteFideId "22502203"]
[BlackFideId "13413554"]
[WhiteElo "2119"]
[BlackElo "2418"]
[Result "0-1"]
[Round "02"]
[TimeControl "180+1"]
[Date "2022.01.04"]
[WhiteClock "0:01:29"]
[BlackClock "0:01:42"]

1. e4 {[%clk 0:03:00]}  Nf6 {[%clk 0:03:00]} 2. e5 {[%clk 0:02:59]}  Nd5 {[%clk 0:03:00]} 3. d4 {[%clk 0:02:33]}  d6 {[%clk 0:02:59]} 4. Nf3 {[%clk 0:02:33]}  Nb6 {[%clk 0:02:58]} 5. a4 {[%clk 0:02:30]}  a5 {[%clk 0:02:58]} 6. Nc3 {[%clk 0:02:30]}  g6 {[%clk 0:02:58]} 7. exd6 {[%clk 0:02:28]}  cxd6 {[%clk 0:02:59]} 8. Bb5+ {[%clk 0:02:26]}  Bd7 {[%clk 0:02:58]} 9. O-O {[%clk 0:02:27]}  Bg7 {[%clk 0:02:58]} 10. Re1 {[%clk 0:02:27]}  Bxb5 {[%clk 0:02:56]} 11. axb5 {[%clk 0:02:24]}  O-O {[%clk 0:02:56]} 12. Bg5 {[%clk 0:02:24]}  Re8 {[%clk 0:02:55]} 13. Qd2 {[%clk 0:02:25]}  N8d7 {[%clk 0:02:48]} 14. Bh6 {[%clk 0:02:21]}  Nf6 {[%clk 0:02:47]} 15. Bxg7 {[%clk 0:02:21]}  Kxg7 {[%clk 0:02:48]} 16. b3 {[%clk 0:02:21]}  Qc7 {[%clk 0:02:46]} 17. Ra2 {[%clk 0:02:21]}  Rec8 {[%clk 0:02:42]} 18. Ne2 {[%clk 0:02:22]}  a4 {[%clk 0:02:40]} 19. bxa4 {[%clk 0:02:17]}  Rxa4 {[%clk 0:02:40]} 20. Rxa4 {[%clk 0:02:17]}  Nxa4 {[%clk 0:02:40]} 21. Ra1 {[%clk 0:02:17]}  Qxc2 {[%clk 0:02:37]} 22. Qe3 {[%clk 0:02:13]}  Nb6 {[%clk 0:02:28]} 23. Qxe7 {[%clk 0:02:06]}  Re8 {[%clk 0:02:21]} 24. Qxb7 {[%clk 0:02:04]}  Rxe2 {[%clk 0:02:19]} 25. Qxb6 {[%clk 0:01:47]}  Rxf2 {[%clk 0:02:18]} 26. Nh4 {[%clk 0:01:40]}  Ne4 {[%clk 0:01:54]} 27. d5 {[%clk 0:01:33]}  Rd2 {[%clk 0:01:44]} 28. Qe3 {[%clk 0:01:29]}  Rd1+ {[%clk 0:01:42]} 0-1


[Site "https://www.chess.com"]